fUST/lending_fUST_20250210
["ID","MTS","AMOUNT","RATE_DAILY","PERIOD"]
[352605487,1739194241412,-500.0,0.00011232,2]
[352605488,1739194241423,-500.0,0.00011232,2]
[352605489,1739194241433,-500.0,0.00011232,2]
[352605490,1739194241443,-500.0,0.00011232,2]
[352605491,1739194241453,-686.3,0.00011232,2]
[352605492,1739194241462,-500.0,0.00011232,2]
[352605493,1739194241472,-500.0,0.00011232,2]
[352605494,1739194241483,-500.0,0.00011232,2]
[352605495,1739194241493,-500.0,0.00011232,2]
[352605496,1739194241503,-500.0,0.00011232,2]
[352605497,1739194241513,-295.2441697,0.00011232,2]
[352605498,1739194241523,-500.0,0.00011232,2]
[352605499,1739194241534,-500.0,0.00011232,2]
[352605500,1739194241543,-507.42529487,0.00011232,2]
[352605501,1739194241553,-500.0,0.00011232,2]
[352605502,1739194241562,-500.0,0.00011232,2]
[352605503,1739194241571,-500.0,0.00011232,2]
[352605504,1739194241582,-500.0,0.00011232,2]
[352605505,1739194241592,-500.0,0.00011232,2]
[352605506,1739194241602,-500.0,0.00011232,2]
[352605507,1739194241612,-500.0,0.00011232,2]
[352605508,1739194241621,-500.0,0.00011232,2]
[352605509,1739194241631,-500.0,0.00011232,2]
[352605510,1739194241641,-501.92022201,0.00011232,2]
[352605511,1739194241650,-590.34,0.00011232,2]
[352605512,1739194241659,-500.0,0.00011232,2]
[352605513,1739194241671,-589.43,0.00011232,2]
[352605514,1739194241680,-500.0,0.00011232,2]
[352605515,1739194241689,-500.0,0.00011232,2]
[352605516,1739194241699,-500.0,0.00011232,2]
[352605517,1739194241708,-304.42551226,0.00011232,2]
[352605518,1739194241718,-500.0,0.00011232,2]
[352605519,1739194241729,-500.0,0.00011232,2]
[352605520,1739194241739,-500.0,0.00011232,2]
[352605521,1739194241748,-500.0,0.00011232,2]
[352605522,1739194241758,-500.0,0.00011232,2]
[352605523,1739194241767,-500.0,0.00011232,2]
[352605524,1739194241777,-500.0,0.00011232,2]
[352605525,1739194241786,-500.0,0.00011232,2]
[352605526,1739194241796,-500.0,0.00011232,2]
[352605527,1739194241805,-500.0,0.00011232,2]
[352605528,1739194241815,-500.0,0.00011232,2]
[352605529,1739194241825,-500.0,0.00011232,2]
[352605530,1739194241835,-500.0,0.00011232,2]
[352605531,1739194241844,-500.0,0.00011232,2]
[352605532,1739194241854,-650.3,0.00011232,2]
[352605533,1739194241863,-701.39,0.00011232,2]
[352605534,1739194241873,-500.0,0.00011232,2]
[352605535,1739194241882,-500.0,0.00011232,2]
[352605536,1739194241892,-516.28,0.00011232,2]
[352605537,1739194241902,-500.0,0.00011232,2]
[352605538,1739194241912,-500.0,0.00011232,2]
[352605539,1739194241922,-6667.34,0.00011232,2]
[352605540,1739194241932,-197.66456261,0.00011232,2]
[352605541,1739194241942,-500.0,0.00011232,2]
[352605542,1739194241951,-500.0,0.00011232,2]
[352605543,1739194241960,-500.0,0.00011232,2]
[352605544,1739194241970,-500.0,0.00011232,2]
[352605545,1739194241979,-685.71,0.00011232,2]
[352605546,1739194241989,-2060.22,0.00011232,2]
[352605547,1739194241999,-678.22,0.00011232,2]
[352605548,1739194242008,-500.0,0.00011232,2]
[352605549,1739194242017,-500.0,0.00011232,2]
[352605550,1739194242026,-500.0,0.00011232,2]
[352605551,1739194242036,-500.0,0.00011232,2]
[352605552,1739194242046,-500.0,0.00011232,2]
[352605553,1739194242055,-500.0,0.00011232,2]
[352605554,1739194242065,-500.0,0.00011232,2]
[352605555,1739194242075,-500.0,0.00011232,2]
[352605556,1739194242085,-500.0,0.00011232,2]
[352605557,1739194242094,-500.0,0.00011232,2]
[352605558,1739194242104,-561.55,0.00011232,2]
[352605559,1739194242114,-500.0,0.00011232,2]
[352605560,1739194242123,-500.0,0.00011232,2]
[352605561,1739194242132,-500.0,0.00011232,2]
[352605562,1739194242142,-3050.95,0.00011232,2]
[352605563,1739194242152,-1317.56,0.00011232,2]
[352605564,1739194242162,-500.0,0.00011232,2]
[352605565,1739194242173,-500.0,0.00011232,2]
[352605566,1739194242186,-500.0,0.00011232,2]
[352605567,1739194242195,-643.03,0.00011232,2]
[352605568,1739194242205,-500.0,0.00011232,2]
[352605569,1739194242214,-1732.61,0.00011232,2]
[352605570,1739194242225,-500.0,0.00011232,2]
[352605571,1739194242234,-500.0,0.00011232,2]
[352605572,1739194242243,-1505.42,0.00011232,2]
[352605573,1739194242253,-500.0,0.00011232,2]
[352605574,1739194242263,-500.0,0.00011232,2]
[352605575,1739194242272,-500.0,0.00011232,2]
[352605576,1739194242281,-366.51649197,0.00011232,2]
[352605577,1739194242291,-6262.42,0.00011232,2]
[352605578,1739194242300,-500.0,0.00011232,2]
[352605579,1739194242310,-500.0,0.00011232,2]
[352605580,1739194242319,-1392.18,0.00011232,2]
[352605581,1739194242329,-500.0,0.00011232,2]
[352605582,1739194242339,-1207.83,0.00011232,2]
[352605583,1739194242348,-500.0,0.00011232,2]
[352605584,1739194242358,-500.0,0.00011232,2]
[352605585,1739194242368,-801.78,0.00011232,2]
[352605586,1739194242378,-712.93,0.00011232,2]
[352605587,1739194242387,-683.87,0.00011232,2]
[352605588,1739194242397,-15034.51,0.00011232,2]
[352605589,1739194242406,-500.0,0.00011232,2]
[352605590,1739194242416,-500.0,0.00011232,2]
[352605591,1739194242427,-500.0,0.00011232,2]
[352605592,1739194242437,-1356.11,0.00011232,2]
[352605594,1739194242446,-500.0,0.00011232,2]
[352605596,1739194242456,-810.23,0.00011232,2]
[352605598,1739194242465,-2907.54,0.00011232,2]
[352605600,1739194242475,-500.0,0.00011232,2]
[352605602,1739194242484,-789.76,0.00011232,2]
[352605604,1739194242494,-500.0,0.00011232,2]
[352605608,1739194242503,-500.0,0.00011232,2]
[352605610,1739194242513,-500.0,0.00011232,2]
[352605611,1739194242523,-388.23739994,0.00011232,2]
[352605612,1739194242532,-500.0,0.00011232,2]
[352605613,1739194242541,-500.0,0.00011232,2]
[352605614,1739194242550,-500.0,0.00011232,2]
[352605615,1739194242560,-500.0,0.00011232,2]
[352605616,1739194242569,-500.0,0.00011232,2]
[352605617,1739194242579,-1450.36,0.00011232,2]
[352605618,1739194242588,-500.0,0.00011232,2]
[352605619,1739194242598,-910.41,0.00011232,2]
[352605620,1739194242608,-4042.20238472,0.0001127,2]
[352605621,1739194242618,-361.95307672,0.00011337,2]
[352605622,1739194242628,-500.0,0.00011369,2]
[352605623,1739194242638,-500.0,0.00011369,2]
[352605624,1739194242647,-500.0,0.00011369,2]
[352605625,1739194242657,-500.0,0.00011369,2]
[352605627,1739194242666,-500.0,0.00011369,2]
[352605628,1739194242676,-500.0,0.00011369,2]
[352605630,1739194242686,-500.0,0.00011369,2]
[352605631,1739194242696,-561.70437769,0.00011369,2]
[352605632,1739194242705,-575.36,0.00011369,2]
[352605633,1739194242715,-616.55,0.00011369,2]
[352605634,1739194242724,-373.44,0.00011369,2]
[352605635,1739194242734,-500.0,0.00011369,2]
[352605636,1739194242743,-596.89,0.00011369,2]
[352605637,1739194242752,-512.6,0.00011369,2]
[352605638,1739194242761,-500.0,0.00011369,2]
[352605639,1739194242770,-500.0,0.00011369,2]
[352605640,1739194242780,-936.53,0.00011369,2]
[352605641,1739194242789,-510.10829942,0.00011369,2]
[352605642,1739194242798,-500.0,0.00011369,2]
[352605643,1739194242808,-455.21463509,0.00011369,2]
[352605644,1739194242817,-686.3,0.00011369,2]
[352605645,1739194242827,-500.0,0.00011369,2]
[352605646,1739194242837,-500.0,0.00011369,2]
[352605647,1739194242848,-500.0,0.00011369,2]
[352605648,1739194242858,-500.0,0.00011369,2]
[352605649,1739194242867,-500.0,0.00011369,2]
[352605650,1739194242876,-500.0,0.00011369,2]
[352605651,1739194242886,-500.0,0.00011369,2]
[352605652,1739194242896,-500.0,0.00011369,2]
[352605653,1739194242906,-500.0,0.00011369,2]
[352605654,1739194242915,-500.0,0.00011369,2]
[352605655,1739194242928,-500.0,0.00011369,2]
[352605656,1739194242937,-500.0,0.00011369,2]
[352605657,1739194243020,-500.0,0.00011369,2]
[352605658,1739194243041,-500.0,0.00011369,2]
[352605659,1739194243050,-590.34,0.00011369,2]
[352605660,1739194243060,-500.0,0.00011369,2]
[352605661,1739194243070,-500.0,0.00011369,2]
[352605662,1739194243079,-500.0,0.00011369,2]
[352605663,1739194243089,-500.0,0.00011369,2]
[352605664,1739194243099,-625.41034347,0.00011369,2]
[352605665,1739194243109,-500.0,0.00011369,2]
[352605666,1739194243119,-500.0,0.00011369,2]
[352605667,1739194243128,-423.70414032,0.00011369,2]
[352605668,1739194243139,-500.0,0.00011369,2]
[352605669,1739194243148,-500.0,0.00011369,2]
[352605670,1739194243158,-500.0,0.00011369,2]
[352605671,1739194243169,-500.0,0.00011369,2]
[352605672,1739194243183,-445.12929551,0.00011369,2]
[352605673,1739194243194,-500.0,0.00011369,2]
[352605674,1739194243204,-650.3,0.00011369,2]
[352605675,1739194243214,-701.39,0.00011369,2]
[352605676,1739194243225,-500.0,0.00011369,2]
[352605677,1739194243235,-500.0,0.00011369,2]
[352605678,1739194243245,-516.28,0.00011369,2]
[352605679,1739194243254,-500.0,0.00011369,2]
[352605680,1739194243265,-500.0,0.00011369,2]
[352605681,1739194243275,-6667.34,0.00011369,2]
[352605682,1739194243284,-500.0,0.00011369,2]
[352605683,1739194243293,-500.0,0.00011369,2]
[352605684,1739194243302,-500.0,0.00011369,2]
[352605685,1739194243312,-500.0,0.00011369,2]
[352605686,1739194243321,-685.71,0.00011369,2]
[352605687,1739194243331,-2060.22,0.00011369,2]
[352605688,1739194243340,-678.22,0.00011369,2]
[352605689,1739194243350,-500.0,0.00011369,2]
[352605690,1739194243360,-500.0,0.00011369,2]
[352605691,1739194243370,-500.0,0.00011369,2]
[352605692,1739194243379,-151.0,0.00011369,2]
[352605693,1739194243389,-500.0,0.00011369,2]
[352605694,1739194243398,-500.0,0.00011369,2]
[352605695,1739194243407,-500.0,0.00011369,2]
[352605696,1739194243417,-500.0,0.00011369,2]
[352605697,1739194243429,-500.0,0.00011369,2]
[352605698,1739194243439,-208.71,0.00011369,2]
[352605699,1739194243448,-561.55,0.00011369,2]
[352605700,1739194243457,-500.0,0.00011369,2]
[352605701,1739194243468,-500.0,0.00011369,2]
[352605702,1739194243478,-500.0,0.00011369,2]
[352605703,1739194243488,-3050.95,0.00011369,2]
[352605704,1739194243498,-151.0,0.00011369,2]
[352605705,1739194243507,-1317.56,0.00011369,2]
[352605706,1739194243518,-151.0,0.00011369,2]
[352605707,1739194243527,-500.0,0.00011369,2]
[352605708,1739194243537,-500.0,0.00011369,2]
[352605709,1739194243546,-500.0,0.00011369,2]
[352605710,1739194243556,-643.03,0.00011369,2]
[352605711,1739194243565,-151.0,0.00011369,2]
[352605712,1739194243575,-1732.61,0.00011369,2]
[352605713,1739194243585,-500.0,0.00011369,2]
[352605714,1739194243594,-500.0,0.00011369,2]
[352605715,1739194243603,-1505.42,0.00011369,2]
[352605716,1739194243613,-170.7404736,0.00011369,2]
[352605717,1739194243622,-151.056789,0.00011369,2]
[352605718,1739194243631,-500.0,0.00011369,2]
[352605719,1739194243641,-500.0,0.00011369,2]
[352605720,1739194243650,-151.056789,0.00011369,2]
[352605721,1739194243660,-6262.42,0.00011369,2]
[352605722,1739194243669,-500.0,0.00011369,2]
[352605723,1739194243679,-500.0,0.00011369,2]
[352605724,1739194243689,-1392.18,0.00011369,2]
[352605725,1739194243698,-500.0,0.00011369,2]
[352605726,1739194243708,-1207.83,0.00011369,2]
[352605727,1739194243717,-500.0,0.00011369,2]
[352605728,1739194243727,-801.78,0.00011369,2]
[352605729,1739194243736,-712.93,0.00011369,2]
[352605730,1739194243746,-683.87,0.00011369,2]
[352605731,1739194243755,-15034.51,0.00011369,2]
[352605732,1739194243764,-500.0,0.00011369,2]
[352605733,1739194243774,-500.0,0.00011369,2]
[352605734,1739194243783,-500.0,0.00011369,2]
[352605735,1739194243792,-1356.11,0.00011369,2]
[352605736,1739194243802,-500.0,0.00011369,2]
[352605737,1739194243811,-810.23,0.00011369,2]
[352605738,1739194243822,-2907.54,0.00011369,2]
[352605739,1739194243832,-151.0,0.00011369,2]
[352605740,1739194243841,-500.0,0.00011369,2]
[352605741,1739194243851,-789.76,0.00011369,2]
[352605742,1739194243860,-500.0,0.00011369,2]
[352605743,1739194243870,-500.0,0.00011369,2]
[352605744,1739194243879,-500.0,0.00011369,2]
[352605745,1739194243889,-500.0,0.00011369,2]
[352605746,1739194243898,-500.0,0.00011369,2]
[352605747,1739194243908,-500.0,0.00011369,2]
[352605748,1739194243918,-500.0,0.00011369,2]
[352605749,1739194243929,-1450.36,0.00011369,2]
[352605750,1739194243940,-500.0,0.00011369,2]
[352605751,1739194243950,-910.41,0.00011369,2]
[352605752,1739194243959,-500.0,0.00011402,2]
[352605753,1739194243968,-621.70952141,0.00011402,2]
[352605754,1739194243978,-500.0,0.00011402,2]
[352605755,1739194243988,-278.54427922,0.00011414,2]
[352605756,1739194243997,-500.0,0.00011414,2]
[352605757,1739194244007,-500.86851527,0.00011414,2]
[352605758,1739194244017,-500.0,0.00011414,2]
[352605759,1739194244026,-500.0,0.00011414,2]
[352605760,1739194244036,-626.10567238,0.0001143,2]
[352605761,1739194244046,-500.0,0.0001143,2]
[352605762,1739194244056,-500.0,0.0001143,2]
[352605763,1739194244066,-500.0,0.0001143,2]
[352605764,1739194244076,-500.0,0.0001143,2]
[352605765,1739194244086,-500.0,0.0001143,2]
[352605766,1739194244096,-386.01861773,0.0001143,2]
[352605767,1739194244105,-500.0,0.00011445,2]
[352605768,1739194244115,-533.81571692,0.00011464,2]
[352605769,1739194244125,-500.0,0.00011464,2]
[352605770,1739194244134,-500.0,0.00011464,2]
[352605771,1739194244143,-500.0,0.00011465,2]
[352605772,1739194244152,-500.0,0.00011465,2]
[352605773,1739194244161,-500.0,0.00011465,2]
[352605774,1739194244172,-500.0,0.00011489,2]
[352605775,1739194244184,-156.47861849,0.00011489,2]
[352605776,1739194244195,-272.87832129,0.00011489,2]
[352605777,1739194244205,-151.0,0.0001149,2]
[352605778,1739194244214,-151.0,0.0001149,2]
[352605779,1739194244226,-151.0,0.0001149,2]
[352605780,1739194244236,-256.76240735,0.00011506,2]
[352605781,1739194244245,-500.0,0.00011506,2]
[352605782,1739194244256,-500.0,0.00011506,2]
[352605783,1739194244266,-500.0,0.00011506,2]
[352605784,1739194244276,-500.0,0.00011506,2]
[352605785,1739194244285,-500.0,0.00011506,2]
[352605786,1739194244295,-532.59101627,0.00011506,2]
[352605787,1739194244305,-575.36,0.00011506,2]
[352605788,1739194244315,-616.55,0.00011506,2]
[352605789,1739194244326,-327.31765265,0.00011506,2]
[352605790,1739194244336,-596.89,0.00011506,2]
[352605791,1739194244345,-512.6,0.00011506,2]
[352605792,1739194244355,-500.0,0.00011506,2]
[352605793,1739194244366,-936.53,0.00011506,2]
[352605794,1739194244375,-500.0,0.00011506,2]
[352605795,1739194244385,-686.3,0.00011506,2]
[352605796,1739194244394,-500.0,0.00011506,2]
[352605797,1739194244403,-500.0,0.00011506,2]
[352605798,1739194244413,-500.0,0.00011506,2]
[352605799,1739194244423,-500.0,0.00011506,2]
[352605800,1739194244432,-500.0,0.00011506,2]
[352605801,1739194244442,-500.0,0.00011506,2]
[352605802,1739194244451,-500.0,0.00011506,2]
[352605803,1739194244461,-500.0,0.00011506,2]
[352605804,1739194244470,-272.884316,0.00011506,2]
[352605805,1739194244480,-272.884316,0.00011506,2]
[352605806,1739194244490,-500.0,0.00011506,2]
[352605807,1739194244499,-500.0,0.00011506,2]
[352605808,1739194244509,-500.0,0.00011506,2]
[352605809,1739194244518,-500.0,0.00011506,2]
[352605810,1739194244528,-590.34,0.00011506,2]
[352605811,1739194244538,-500.0,0.00011506,2]
[352605812,1739194244547,-500.0,0.00011506,2]
[352605813,1739194244557,-500.0,0.00011506,2]
[352605814,1739194244567,-151.0,0.00011506,2]
[352605815,1739194244578,-500.0,0.00011506,2]
[352605816,1739194244587,-152.624458,0.00011506,2]
[352605817,1739194244597,-151.0,0.00011506,2]
[352605818,1739194244608,-500.0,0.00011506,2]
[352605819,1739194244617,-500.0,0.00011506,2]
[352605820,1739194244627,-500.0,0.00011506,2]
[352605821,1739194244637,-500.0,0.00011506,2]
[352605822,1739194244646,-500.0,0.00011506,2]
[352605823,1739194244655,-151.0,0.00011506,2]
[352605824,1739194244665,-500.0,0.00011506,2]
[352605825,1739194244675,-342.045788,0.00011506,2]
[352605826,1739194244684,-342.045788,0.00011506,2]
[352605827,1739194244693,-500.0,0.00011506,2]
[352605828,1739194244702,-650.3,0.00011506,2]
[352605829,1739194244712,-701.39,0.00011506,2]
[352605830,1739194244722,-205.37117131,0.00011506,2]
[352605831,1739194244731,-500.0,0.00011506,2]
[352605832,1739194244740,-516.28,0.00011506,2]
[352605833,1739194244750,-151.0,0.00011506,2]
[352605834,1739194244760,-500.0,0.00011506,2]
[352605835,1739194244769,-500.0,0.00011506,2]
[352605836,1739194244779,-6667.34,0.00011506,2]
[352605837,1739194244788,-500.0,0.00011506,2]
[352605838,1739194244798,-500.0,0.00011506,2]
[352605839,1739194244909,-397.00989874,0.00011506,2]
[352605840,1739194244919,-500.0,0.00011506,2]
[352605841,1739194244930,-685.71,0.00011506,2]
[352605842,1739194244940,-2060.22,0.00011506,2]
[352605843,1739194244949,-678.22,0.00011506,2]
[352605844,1739194244959,-500.0,0.00011506,2]
[352605845,1739194244969,-576.35398343,0.00011506,2]
[352605846,1739194244979,-500.0,0.00011506,2]
[352605847,1739194244988,-500.0,0.00011506,2]
[352605848,1739194244998,-500.0,0.00011506,2]
[352605849,1739194245007,-500.0,0.00011506,2]
[352605850,1739194245017,-500.0,0.00011506,2]
[352605851,1739194245026,-500.0,0.00011506,2]
[352605852,1739194245036,-561.55,0.00011506,2]
[352605853,1739194245045,-151.0,0.00011506,2]
[352605854,1739194245055,-500.0,0.00011506,2]
[352605855,1739194245064,-500.0,0.00011506,2]
[352605856,1739194245075,-3050.95,0.00011506,2]
[352605857,1739194245084,-1317.56,0.00011506,2]
[352605858,1739194245094,-500.0,0.00011506,2]
[352605859,1739194245103,-177.69,0.00011506,2]
[352605860,1739194245113,-643.03,0.00011506,2]
[352605861,1739194245123,-1732.61,0.00011506,2]
[352605862,1739194245133,-500.0,0.00011506,2]
[352605863,1739194245143,-500.0,0.00011506,2]
[352605864,1739194245153,-1505.42,0.00011506,2]
[352605865,1739194245162,-500.0,0.00011506,2]
[352605866,1739194245171,-500.0,0.00011506,2]
[352605867,1739194245186,-6262.42,0.00011506,2]
[352605868,1739194245195,-500.0,0.00011506,2]
[352605869,1739194245205,-500.0,0.00011506,2]
[352605870,1739194245214,-1392.18,0.00011506,2]
[352605872,1739194245224,-500.0,0.00011506,2]
[352605874,1739194245234,-1207.83,0.00011506,2]
[352605875,1739194245243,-500.0,0.00011506,2]
[352605876,1739194245252,-801.78,0.00011506,2]
[352605878,1739194245263,-712.93,0.00011506,2]
[352605879,1739194245273,-15034.51,0.00011506,2]
[352605880,1739194245283,-683.87,0.00011506,2]
[352605881,1739194245293,-500.0,0.00011506,2]
[352605882,1739194245302,-500.0,0.00011506,2]
[352605883,1739194245311,-1356.11,0.00011506,2]
[352605884,1739194245321,-500.0,0.00011506,2]
[352605885,1739194245331,-810.23,0.00011506,2]
[352605886,1739194245340,-2907.54,0.00011506,2]
[352605887,1739194245350,-500.0,0.00011506,2]
[352605888,1739194245360,-789.76,0.00011506,2]
[352605889,1739194245369,-151.0,0.00011506,2]
[352605890,1739194245379,-500.0,0.00011506,2]
[352605891,1739194245388,-500.0,0.00011506,2]
[352605892,1739194245397,-151.0,0.00011506,2]
[352605893,1739194245407,-526.4599109,0.00011506,2]
[352605894,1739194245417,-500.0,0.00011506,2]
[352605895,1739194245427,-500.0,0.00011506,2]
[352605896,1739194245436,-500.0,0.00011506,2]
[352605897,1739194245445,-1450.36,0.00011506,2]
[352605898,1739194245454,-500.0,0.00011506,2]
[352605900,1739194245463,-910.41,0.00011506,2]
[352605902,1739194245473,-974.32209661,0.00011542,2]
[352605904,1739194245482,-250.80127485,0.00011549,2]
[352605906,1739194245492,-45619.26047126,0.00011614,2]
[352605908,1739194245501,-150.56066039,0.00011633,2]
[352605910,1739194245510,-500.0,0.00011643,2]
[352605912,1739194245520,-500.0,0.00011643,2]
[352605913,1739194245529,-500.0,0.00011643,2]
[352605914,1739194245538,-575.36,0.00011643,2]
[352605915,1739194245547,-616.55,0.00011643,2]
[352605916,1739194245556,-596.89,0.00011643,2]
[352605917,1739194245565,-512.6,0.00011643,2]
[352605918,1739194245575,-500.0,0.00011643,2]
[352605919,1739194245585,-936.53,0.00011643,2]
[352605920,1739194245594,-500.0,0.00011643,2]
[352605921,1739194245603,-686.3,0.00011643,2]
[352605922,1739194245612,-500.0,0.00011643,2]
[352605923,1739194245622,-500.0,0.00011643,2]
[352605924,1739194245631,-500.0,0.00011643,2]
[352605925,1739194245640,-516.62,0.00011643,2]
[352605926,1739194245649,-500.0,0.00011643,2]
[352605927,1739194245657,-500.0,0.00011643,2]
[352605928,1739194245666,-151.0,0.00011643,2]
[352605929,1739194245675,-233.142362,0.00011643,2]
[352605930,1739194245686,-233.142362,0.00011643,2]
[352605931,1739194245696,-500.0,0.00011643,2]
[352605932,1739194245705,-500.0,0.00011643,2]
[352605933,1739194245715,-500.0,0.00011643,2]
[352605934,1739194245730,-500.0,0.00011643,2]
[352605935,1739194245744,-500.0,0.00011643,2]
[352605936,1739194245757,-590.34,0.00011643,2]
[352605937,1739194245770,-500.0,0.00011643,2]
[352605938,1739194245784,-500.0,0.00011643,2]
[352605939,1739194245798,-500.0,0.00011643,2]
[352605940,1739194245812,-171.35345015,0.00011643,2]
[352605943,1739194245842,-328.64654985,0.00011643,2]
[352605944,1739194245856,-500.0,0.00011643,2]
[352605945,1739194245869,-219.49418036,0.00011643,2]
[352605946,1739194245882,-500.0,0.00011643,2]
[352605947,1739194245894,-500.0,0.00011643,2]
[352605948,1739194245909,-500.0,0.00011643,2]
[352605949,1739194245923,-500.0,0.00011643,2]
[352605950,1739194245934,-650.3,0.00011643,2]
[352605951,1739194245946,-701.39,0.00011643,2]
[352605952,1739194245958,-151.0,0.00011643,2]
[352605953,1739194245972,-500.0,0.00011643,2]
[352605954,1739194245986,-516.28,0.00011643,2]
[352605955,1739194246000,-500.0,0.00011643,2]
[352605956,1739194246016,-500.0,0.00011643,2]
[352605957,1739194246032,-6667.34,0.00011643,2]
[352605958,1739194246044,-500.0,0.00011643,2]
[352605959,1739194246055,-500.0,0.00011643,2]
[352605960,1739194246068,-500.0,0.00011643,2]
[352605961,1739194246083,-685.71,0.00011643,2]
[352605962,1739194246096,-2060.22,0.00011643,2]
[352605963,1739194246107,-678.22,0.00011643,2]
[352605964,1739194246120,-500.0,0.00011643,2]
[352605965,1739194246133,-500.0,0.00011643,2]
[352605966,1739194246145,-151.0,0.00011643,2]
[352605967,1739194246157,-500.0,0.00011643,2]
[352605968,1739194246168,-585.20542839,0.00011643,2]
[352605969,1739194246182,-500.0,0.00011643,2]
[352605970,1739194246198,-500.0,0.00011643,2]
[352605971,1739194246210,-561.55,0.00011643,2]
[352605972,1739194246222,-500.0,0.00011643,2]
[352605973,1739194246235,-500.0,0.00011643,2]
[352605974,1739194246248,-3050.95,0.00011643,2]
[352605975,1739194246261,-151.0,0.00011643,2]
[352605976,1739194246274,-151.0,0.00011643,2]
[352605977,1739194246286,-296.943298,0.00011643,2]
[352605978,1739194246298,-1317.56,0.00011643,2]
[352605979,1739194246310,-151.0,0.00011643,2]
[352605980,1739194246322,-500.0,0.00011643,2]
[352605981,1739194246335,-643.03,0.00011643,2]
[352605982,1739194246348,-151.0,0.00011643,2]
[352605983,1739194246361,-1732.61,0.00011643,2]
[352605984,1739194246373,-500.0,0.00011643,2]
[352605985,1739194246385,-500.0,0.00011643,2]
[352605986,1739194246397,-1505.42,0.00011643,2]
[352605987,1739194246408,-151.056789,0.00011643,2]
[352605988,1739194246420,-410.79066298,0.00011643,2]
[352605989,1739194246432,-500.0,0.00011643,2]
[352605990,1739194246445,-151.056789,0.00011643,2]
[352605991,1739194246458,-6262.42,0.00011643,2]
[352605992,1739194246470,-500.0,0.00011643,2]
[352605993,1739194246480,-500.0,0.00011643,2]
[352605994,1739194246490,-1392.18,0.00011643,2]
[352605995,1739194246500,-500.0,0.00011643,2]
[352605996,1739194246509,-1207.83,0.00011643,2]
[352605997,1739194246518,-500.0,0.00011643,2]
[352605998,1739194246529,-801.78,0.00011643,2]
[352605999,1739194246538,-712.93,0.00011643,2]
[352606000,1739194246548,-15034.51,0.00011643,2]
[352606001,1739194246558,-683.87,0.00011643,2]
[352606002,1739194246568,-500.0,0.00011643,2]
[352606003,1739194246578,-500.0,0.00011643,2]
[352606004,1739194246588,-1356.11,0.00011643,2]
[352606005,1739194246598,-409.48,0.00011643,2]
[352606006,1739194246607,-810.23,0.00011643,2]
[352606007,1739194246617,-2907.54,0.00011643,2]
[352606008,1739194246627,-151.0,0.00011643,2]
[352606009,1739194246636,-500.0,0.00011643,2]
[352606010,1739194246646,-789.76,0.00011643,2]